{"text_format":"1","workbook":"xlsx","n_sheets":2,"sheets":["【入力用】福岡市用","【記載例】福岡市用 "],"not_rendered":{"charts":0,"images":0,"macros":1,"external_links":0,"defined_names":2,"comments":0,"pivot_tables":0},"unopened":[],"bounds":{"document_bytes":16777216,"sheet_cells":100000,"rows_first":2000,"rows_last":500,"rows_between":2000,"halvings":0,"cell_chars":16384,"cell_head_chars":4096},"cells_cut":0,"cells_raw":0,"read":"whole","date_system":"1900"}

{"sheet":"【入力用】福岡市用","index":0,"n_rows":25,"n_cols":23,"rows_kept":25,"cut":false,"hidden":false,"merged":[[22,1,22,7],[22,14,22,16],[19,1,21,3],[19,4,19,7],[19,14,21,14],[19,15,19,16],[21,4,21,7],[21,15,21,16],[13,1,13,11],[11,10,11,11],[20,4,20,7],[20,15,20,16],[3,1,3,6]]}
["（提出期限：実施の翌月１０日まで）"]
[]
[null,null,null,null,null,null,null,null,null,null,null,"年　　月　　日"]
[null,"福岡市長　様"]
[null,"市区町村番号"]
[]
[null,4,0,1,3,0,7]
[null,null,null,null,null,null,null,null,"所在地"]
[null,null,null,null,null,null,null,null,"医療機関名"]
[null,"　　　　",null,null,null,null,null,null,"代表者氏名"]
[null,null,null,null,null,null,null,null,"電話番号"]
[null,null,null,null,null,null,null,null,"医療機関・健診機関番号"]
[]
[null,"風しん追加的対策　実施報告書（令和　年　月分）"]
[]
[null,"添付予診票のとおり、実施いたしましたので、下記のとおり報告します。"]
[]
[null,null,null,null,null,null,null,null,null,null,null,null,null,null,"【計算スペース】※こちらに件数を記入すると左記の実績報告書が埋まっていきます"]
[null,null,null,null,null,null,null,null,"請求件数","請求金額\n（税抜）","請求金額\n（税込）",null,null,null,null,null,null,"請求件数","税抜き単価","税込み単価","請求総額（税抜き）\n※システムエラーのチェック用","請求総額（税込み）"]
[null,"予防接種",null,null,"通常（MRワクチン）",null,null,null,{"$f":"R20","v":0},{"$f":"U20","v":0},0,null,null,null,"予防接種","通常（ＭＲワクチン）",null,null,9260,{"$f":"ROUNDDOWN(S20*(1+(K25)/100),0)","v":10186},{"$f":"S20*R20","v":0},{"$f":"T20*R20","v":0}]
[null,null,null,null,"通常（単独ワクチン）",null,null,null,{"$f":"R21","v":0},{"$f":"U21","v":0},{"$f":"V21","v":0},null,null,null,null,"通常（単独ワクチン）",null,null,5985,{"$f":"ROUNDDOWN(S21*(1+(K25)/100),0)","v":6583},{"$f":"S21*R21","v":0},{"$f":"T21*R21","v":0}]
[null,null,null,null,"予診のみ",null,null,null,0,0,0,null,null,null,null,"予診のみ",null,null,2778,{"$f":"ROUNDDOWN(S22*(1+(K25)/100),0)","v":3055},{"$f":"S22*R22","v":0},{"$f":"T22*R22","v":0}]
[null,"合計",null,null,null,null,null,null,0,{"$f":"SUM(J20:J22)","v":0},{"$f":"SUM(K20:K22)","v":0},null,null,null,"合計",null,null,{"$f":"SUM(R20:R22)","v":0},null,null,{"$f":"SUM(U20:U22)","v":0},{"$f":"SUM(V20:V22)","v":0},"  ※税込単価は、１円未満の端数は切り捨て"]
[]
[null,null,null,null,null,null,null,null,null,"消費税率",10,"％"]

{"sheet":"【記載例】福岡市用 ","index":1,"n_rows":23,"n_cols":22,"rows_kept":23,"cut":false,"hidden":false,"merged":[[1,1,1,6],[9,10,9,11],[11,1,11,11],[20,1,20,7],[20,14,20,16],[17,1,19,3],[17,4,17,7],[17,14,19,14],[17,15,17,16],[18,4,18,7],[18,15,18,16],[19,4,19,7],[19,15,19,16]]}
[null,null,null,null,null,null,null,null,null,null,null,"年　　月　　日"]
[null,"福岡市長　様"]
[null,"市区町村番号"]
[]
[null,4,0,1,3,0,7]
[null,null,null,null,null,null,null,null,"所在地","○○県○○市○○町○丁目○番○号"]
[null,null,null,null,null,null,null,null,"医療機関名","医療法人〇○○○○　○○クリニック"]
[null,"　　　　",null,null,null,null,null,null,"代表者氏名","理事長　福岡　花子"]
[null,null,null,null,null,null,null,null,"電話番号","○○○ー○○○ー○○○○"]
[null,null,null,null,null,null,null,null,"医療機関・健診機関番号",null,1234567890]
[]
[null,"風しん追加的対策　実施報告書（令和7年3月分）"]
[]
[null,"添付予診票のとおり、実施いたしましたので、下記のとおり報告します。"]
[]
[null,null,null,null,null,null,null,null,null,null,null,null,null,null,"【計算スペース】※こちらに件数を記入すると左記の実績報告書が埋まっていきます"]
[null,null,null,null,null,null,null,null,"請求件数","請求金額\n（税抜）","請求金額\n（税込）",null,null,null,null,null,null,"請求件数","税抜き単価","税込み単価","請求総額（税抜き）\n※システムエラーのチェック用","請求総額（税込み）"]
[null,"予防接種",null,null,"通常（MRワクチン）",null,null,null,{"$f":"R18","v":0},{"$f":"U18","v":0},0,null,null,null,"予防接種","通常（ＭＲワクチン）",null,null,9260,{"$f":"ROUNDDOWN(S18*(1+(K23)/100),0)","v":10186},{"$f":"S18*R18","v":0},{"$f":"T18*R18","v":0}]
[null,null,null,null,"通常（単独ワクチン）",null,null,null,0,0,0,null,null,null,null,"通常（単独ワクチン）",null,null,5985,{"$f":"ROUNDDOWN(S19*(1+(K23)/100),0)","v":6583},{"$f":"S19*R19","v":0},{"$f":"T19*R19","v":0}]
[null,null,null,null,"予診のみ",null,null,null,0,0,0,null,null,null,null,"予診のみ",null,null,2778,{"$f":"ROUNDDOWN(S20*(1+(K23)/100),0)","v":3055},{"$f":"S20*R20","v":0},{"$f":"T20*R20","v":0}]
[null,"合計",null,null,null,null,null,null,{"$f":"R21","v":0},{"$f":"SUM(J18:J20)","v":0},{"$f":"SUM(K18:K20)","v":0},null,null,null,"合計",null,null,{"$f":"SUM(R18:R20)","v":0},null,null,{"$f":"SUM(U18:U20)","v":0},{"$f":"SUM(V18:V20)","v":0}]
[]
[null,null,null,null,null,null,null,null,null,"消費税率",10,"％"]